fUST/lending_fUST_20250501
["ID","MTS","AMOUNT","RATE_DAILY","PERIOD"]
[359480037,1746051053795,-719.24,0.00038356,12]
[359480038,1746051053805,-719.24,0.00038356,12]
[359480039,1746051053815,-719.24,0.00038356,12]
[359480040,1746051053824,-719.24,0.00038356,12]
[359480041,1746051053834,-719.24,0.00038356,12]
[359480042,1746051053844,-719.37863015,0.00038356,12]
[359480043,1746051053854,-400.0,0.00038356,12]
[359480044,1746051053864,-400.0,0.00038356,12]
[359480045,1746051053873,-400.0,0.00038356,12]
[359480046,1746051053883,-400.0,0.00038356,12]
[359480047,1746051053892,-400.0,0.00038356,12]
[359480048,1746051053901,-180.97,0.00038356,12]
[359480049,1746051053911,-400.0,0.00038356,12]
[359480050,1746051053920,-400.0,0.00038356,12]
[359480051,1746051053930,-400.0,0.00038356,12]
[359480052,1746051053940,-400.0,0.00038356,12]
[359480053,1746051053950,-400.0,0.00038356,12]
[359480054,1746051053959,-400.0,0.00038356,12]
[359480055,1746051053969,-1449.12,0.00038356,12]
[359480056,1746051053979,-400.0,0.00038356,12]
[359480057,1746051053988,-420.62,0.00038356,12]
[359480058,1746051053997,-400.0,0.00038356,12]
[359480059,1746051054008,-400.0,0.00038356,12]
[359480060,1746051054018,-1449.12,0.00038356,12]
[359480061,1746051054028,-400.0,0.00038356,12]
[359480062,1746051054039,-1449.12,0.00038356,12]
[359480063,1746051054050,-400.0,0.00038356,12]
[359480064,1746051054061,-1449.12,0.00038356,12]
[359480065,1746051054073,-400.0,0.00038356,12]
[359480066,1746051054084,-1449.12,0.00038356,12]
[359480067,1746051054094,-200.0,0.00038356,12]
[359480068,1746051054104,-400.0,0.00038356,12]
[359480069,1746051054114,-1449.12,0.00038356,12]
[359480070,1746051054125,-1449.12,0.00038356,12]
[359480071,1746051054135,-400.0,0.00038356,12]
[359480072,1746051054144,-1449.12,0.00038356,12]
[359480073,1746051054155,-400.0,0.00038356,12]
[359480074,1746051054165,-1449.12,0.00038356,12]
[359480075,1746051054176,-441.97,0.00038356,12]
[359480076,1746051054187,-1449.12,0.00038356,12]
[359480077,1746051054197,-1449.12,0.00038356,12]
[359480078,1746051054207,-1449.12,0.00038356,12]
[359480079,1746051054217,-1449.12,0.00038356,12]
[359480080,1746051054227,-1449.12,0.00038356,12]
[359480081,1746051054236,-400.0,0.00038356,12]
[359480082,1746051054246,-1449.12,0.00038356,12]
[359480083,1746051054258,-400.0,0.00038356,12]
[359480084,1746051054267,-1449.12,0.00038356,12]
[359480085,1746051054277,-400.0,0.00038356,12]
[359480086,1746051054287,-1449.12,0.00038356,12]
[359480087,1746051054298,-400.0,0.00038356,12]
[359480088,1746051054307,-400.0,0.00038356,12]
[359480089,1746051054317,-1449.12,0.00038356,12]
[359480090,1746051054327,-400.0,0.00038356,12]
[359480091,1746051054337,-1449.12,0.00038356,12]
[359480092,1746051054347,-400.0,0.00038356,12]
[359480093,1746051054357,-1449.12,0.00038356,12]
[359480094,1746051054366,-1449.12,0.00038356,12]
[359480095,1746051054376,-1449.12,0.00038356,12]
[359480096,1746051054386,-1449.12,0.00038356,12]
[359480097,1746051054396,-400.0,0.00038356,12]
[359480098,1746051054406,-400.0,0.00038356,12]
[359480099,1746051054416,-1449.31,0.00038356,12]
[359480100,1746051054426,-400.0,0.00038356,12]
[359480101,1746051054437,-400.0,0.00038356,12]
[359480102,1746051054447,-400.0,0.00038356,12]
[359480103,1746051054457,-400.0,0.00038356,12]
[359480104,1746051054467,-400.0,0.00038356,12]
[359480105,1746051054476,-400.0,0.00038356,12]
[359480106,1746051054485,-400.0,0.00038356,12]
[359480107,1746051054494,-151.0,0.00038356,14]
[359480108,1746051054504,-400.0,0.00038356,12]
[359480109,1746051054514,-151.0,0.00038356,14]
[359480110,1746051054523,-435.55942988,0.00038356,12]
[359480111,1746051054533,-400.0,0.00038356,12]
[359480112,1746051054543,-400.0,0.00038356,12]
[359480113,1746051054553,-400.0,0.00038356,12]
[359480114,1746051054562,-400.0,0.00038356,12]
[359480115,1746051054572,-226.08875906,0.00038356,12]
[359480116,1746051054581,-400.0,0.00038356,12]
[359480117,1746051054591,-548.88449254,0.00038356,12]
[359480118,1746051054601,-400.0,0.00038356,12]
[359480119,1746051054610,-400.0,0.00038356,12]
[359480120,1746051054620,-400.0,0.00038356,12]
[359480121,1746051054629,-400.0,0.00038356,12]
[359480122,1746051054640,-400.0,0.00038356,12]
[359480123,1746051054650,-400.0,0.00038356,12]
[359480124,1746051054660,-400.0,0.00038356,12]
[359480125,1746051054670,-400.0,0.00038356,12]
[359480126,1746051054680,-400.0,0.00038356,12]
[359480127,1746051054690,-400.0,0.00038356,12]
[359480128,1746051054700,-400.0,0.00038356,12]
[359480129,1746051054709,-400.0,0.00038356,12]
[359480130,1746051054719,-400.0,0.00038356,12]
[359480131,1746051054728,-400.0,0.00038356,12]
[359480132,1746051054738,-185.38,0.00038356,12]
[359480133,1746051054748,-400.0,0.00038356,12]
[359480134,1746051054758,-400.0,0.00038356,12]
[359480135,1746051054768,-189.40845767,0.00038356,12]
[359480136,1746051054944,-210.59154233,0.00038356,12]
[359480137,1746051054954,-238.62426774,0.00038356,12]
[359480138,1746051054966,-267.01972976,0.00038356,12]
[359480139,1746051054976,-400.0,0.00038356,12]
[359480140,1746051054985,-50.6057305,0.00038356,12]
[359480141,1746051055023,-281.8257478,0.00036178,2]
[359480142,1746051055032,-609.5,0.00037075,30]
[359480143,1746051055042,-349.3942695,0.00038356,12]
[359480144,1746051055052,-190.48,0.00038356,12]
[359480145,1746051055061,-400.0,0.00038356,12]
[359480146,1746051055071,-400.0,0.00038356,12]
[359480147,1746051055081,-400.0,0.00038356,12]
[359480148,1746051055090,-400.0,0.00038356,12]
[359480149,1746051055100,-400.0,0.00038356,12]
[359480150,1746051055110,-400.0,0.00038356,12]
[359480151,1746051055120,-400.0,0.00038356,12]
[359480152,1746051055129,-400.0,0.00038356,12]
[359480153,1746051055139,-400.0,0.00038356,12]
[359480154,1746051055149,-400.0,0.00038356,12]
[359480155,1746051055159,-400.0,0.00038356,12]
[359480156,1746051055171,-400.0,0.00038356,12]
[359480157,1746051055182,-479.86077449,0.00038356,12]
[359480158,1746051055192,-400.0,0.00038356,12]
[359480159,1746051055202,-400.0,0.00038356,12]
[359480160,1746051055212,-400.0,0.00038356,12]
[359480161,1746051055222,-441.25,0.00038356,12]
[359480162,1746051055233,-400.0,0.00038356,12]
[359480163,1746051055242,-400.0,0.00038356,12]
[359480164,1746051055255,-400.0,0.00038356,12]
[359480165,1746051055265,-457.63,0.00038356,12]
[359480166,1746051055274,-400.0,0.00038356,12]
[359480167,1746051055284,-400.0,0.00038356,12]
[359480168,1746051055296,-400.0,0.00038356,12]
[359480169,1746051055305,-400.0,0.00038356,12]
[359480170,1746051055315,-400.0,0.00038356,12]
[359480171,1746051055326,-456.82,0.00038356,12]
[359480172,1746051055336,-456.82,0.00038356,12]
[359480173,1746051055347,-456.82,0.00038356,12]
[359480174,1746051055357,-456.82,0.00038356,12]
[359480175,1746051055367,-400.0,0.00038356,12]
[359480176,1746051055377,-456.82,0.00038356,12]
[359480177,1746051055388,-400.0,0.00038356,12]
[359480178,1746051055398,-456.82,0.00038356,12]
[359480179,1746051055407,-400.0,0.00038356,12]
[359480180,1746051055417,-456.82,0.00038356,12]
[359480181,1746051055427,-400.0,0.00038356,12]
[359480182,1746051055436,-456.82,0.00038356,12]
[359480183,1746051055446,-400.0,0.00038356,12]
[359480184,1746051055456,-456.82,0.00038356,12]
[359480185,1746051055466,-400.0,0.00038356,12]
[359480186,1746051055477,-456.82,0.00038356,12]
[359480187,1746051055486,-300.0,0.00038356,12]
[359480188,1746051055496,-500.0,0.00038356,12]
[359480189,1746051055506,-217.10001475,0.00038356,12]
[359480190,1746051055515,-456.82,0.00038356,12]
[359480191,1746051055525,-456.82,0.00038356,12]
[359480192,1746051055537,-456.82,0.00038356,12]
[359480193,1746051055547,-456.82,0.00038356,12]
[359480194,1746051055557,-456.82,0.00038356,12]
[359480195,1746051055567,-400.0,0.00038356,12]
[359480196,1746051055576,-456.82,0.00038356,12]
[359480197,1746051055587,-400.0,0.00038356,12]
[359480198,1746051055598,-456.82,0.00038356,12]
[359480199,1746051055607,-400.0,0.00038356,12]
[359480200,1746051055617,-400.0,0.00038356,12]
[359480201,1746051055627,-456.82,0.00038356,12]
[359480202,1746051055637,-531.25,0.00038356,12]
[359480203,1746051055647,-456.82,0.00038356,12]
[359480204,1746051055656,-400.0,0.00038356,12]
[359480205,1746051055666,-612.93,0.00038356,12]
[359480206,1746051055676,-612.93,0.00038356,12]
[359480207,1746051055687,-400.0,0.00038356,12]
[359480208,1746051055696,-502.84535847,0.00038356,12]
[359480209,1746051055706,-456.82,0.00038356,12]
[359480210,1746051055715,-261.09134,0.00038356,14]
[359480211,1746051055725,-612.93,0.00038356,12]
[359480212,1746051055735,-400.0,0.00038356,12]
[359480213,1746051055745,-456.82,0.00038356,12]
[359480214,1746051055755,-612.93,0.00038356,12]
[359480215,1746051055765,-400.0,0.00038356,12]
[359480216,1746051055775,-371.4452492,0.00038356,12]
[359480217,1746051055784,-456.82,0.00038356,12]
[359480218,1746051055794,-400.0,0.00038356,12]
[359480219,1746051055804,-612.93,0.00038356,12]
[359480220,1746051055816,-456.82,0.00038356,12]
[359480221,1746051055826,-612.93,0.00038356,12]
[359480222,1746051055836,-456.92,0.00038356,12]
[359480223,1746051055846,-612.93,0.00038356,12]
[359480224,1746051055855,-400.0,0.00038356,12]
[359480225,1746051055865,-612.93,0.00038356,12]
[359480226,1746051055875,-400.0,0.00038356,12]
[359480227,1746051055884,-94.59102333,0.00038356,12]
[359480231,1746051303892,-152.0,0.00021973,2]
[359480232,1746051308861,-174.93605871,0.00021973,2]
[359480233,1746051312052,-165.84812085,0.00021973,2]
[359480234,1746051318352,-7.21582044,0.00021973,2]
[359480238,1746051533384,-1376.0,0.000252,2]
[359480239,1746051533407,-312.088269,0.00027397,2]
[359480241,1746051603781,-292.78417956,0.00021973,2]
[359480242,1746051617024,-207.21582044,0.00021973,2]
[359480258,1746052009145,-247.54278947,0.000245,2]
[359480263,1746052043147,-307.31948832,0.000245,2]
[359480264,1746052043167,-459.4576944,0.00031849,2]
[359480265,1746052043189,-1133.34691067,0.00031862,2]
[359480266,1746052049094,-967.75650402,0.00031862,2]
[359480271,1746052122207,819.38324962,0.00015,2]
[359480278,1746052149132,-150.0,0.00029762,2]
[359480279,1746052149155,-2529.82591181,0.00031862,2]
[359480280,1746052149331,-915.4897627,0.00031907,3]
[359480281,1746052149354,-775.61388971,0.00031995,2]
[359480282,1746052163092,-81.83289489,0.00031995,2]
[359480283,1746052163114,-157.94596,0.00032336,2]
[359480284,1746052163135,-312.088269,0.00033165,2]
[359480285,1746052163156,-1000.0,0.00033468,2]
[359480286,1746052163182,603.866905,0.00032594,2]
[359480287,1746052165312,250.0,0.00029662,2]
[359480297,1746052198016,1000.0,0.00029662,2]
[359480318,1746052232321,-1200.0,0.00034539,3]
[359480319,1746052232332,-400.0,0.00034539,2]
[359480321,1746052232341,-300.0,0.00034539,3]
[359480323,1746052232353,-500.0,0.0003454,7]
[359480324,1746052232364,-500.0,0.0003454,7]
[359480325,1746052232374,-500.0,0.0003454,7]
[359480327,1746052232383,-598.2285311,0.0003454,7]
[359480329,1746052232392,-500.0,0.0003454,7]
[359480330,1746052232403,-500.0,0.0003454,7]
[359480331,1746052232413,-500.0,0.0003454,7]
[359480332,1746052232424,-500.0,0.0003454,7]
[359480333,1746052232434,-500.0,0.0003454,7]
[359480334,1746052232445,-500.0,0.0003454,7]
[359480335,1746052232455,-437.07073492,0.0003454,7]
[359480336,1746052232466,-500.0,0.0003454,7]
[359480337,1746052232475,-500.0,0.0003454,7]
[359480338,1746052232485,-500.0,0.0003454,7]
[359480339,1746052232495,-500.0,0.0003454,7]
[359480341,1746052232504,-24900.0,0.00034541,2]
[359480343,1746052232515,-492.75525404,0.000349,2]
[359480345,1746052232524,-199.99999801,0.00035,2]
[359480346,1746052232535,-6690.13635817,0.00035057,2]
[359480347,1746052232549,-43309.86364183,0.00035057,2]
[359480348,1746052232560,-500.0,0.00035073,5]
[359480349,1746052232570,-500.0,0.00035073,5]
[359480350,1746052232580,-500.0,0.00035073,5]
[359480351,1746052232591,-500.0,0.00035073,5]
[359480352,1746052232602,-500.0,0.00035073,5]
[359480353,1746052232611,-300.0,0.00035073,5]
[359480354,1746052232621,-500.0,0.00035073,5]
[359480355,1746052232636,-500.0,0.00035073,5]
[359480356,1746052232645,-500.0,0.00035073,2]
[359480357,1746052232657,-500.0,0.00035073,5]
[359480358,1746052232666,-500.0,0.00035073,5]
[359480359,1746052232676,-500.0,0.00035073,5]
[359480360,1746052232686,-500.0,0.00035273,5]
[359480361,1746052232695,-500.0,0.00035273,5]
[359480362,1746052232705,-500.26617157,0.00035367,5]
[359480363,1746052232714,-500.0,0.00035367,5]
[359480364,1746052232724,-500.0,0.00035367,5]
[359480365,1746052232734,-468.57727048,0.00035367,5]
[359480366,1746052232744,-500.0,0.00035367,5]
[359480367,1746052232755,-184.976669,0.00035566,2]
[359480368,1746052232765,-250.0,0.00035628,2]
[359480369,1746052232774,-492.75525398,0.00035688,2]
[359480370,1746052232784,-1996.3172822,0.00035886,2]
[359480371,1746052232794,-421.37435881,0.00036255,2]
[359480372,1746052232804,-160.0,0.00036325,2]
[359480373,1746052232814,-160.0,0.00036325,2]
[359480374,1746052232824,-160.0,0.00036325,2]
[359480375,1746052232833,-492.75525398,0.00036476,2]
[359480376,1746052232843,-173.843,0.00036618,45]
[359480377,1746052232854,-388.6516927,0.00036694,30]
[359480378,1746052232864,-560.0,0.00037051,2]
[359480379,1746052232874,-492.75525398,0.00037264,2]
[359480380,1746052232884,-305.5,0.0003731,30]
[359480381,1746052232893,-151.0,0.00037459,2]
[359480382,1746052232903,-361.9316945,0.00037562,30]
[359480383,1746052232913,-361.9316945,0.00037653,30]
[359480384,1746052232923,-361.9316945,0.00037653,30]
[359480385,1746052232932,-361.9316945,0.00037653,30]
[359480386,1746052232942,-492.75525398,0.00038052,2]
[359480387,1746052232952,-9859.39742402,0.00038256,2]
[359480388,1746052232961,-157.2502195,0.00038338,30]
[359480389,1746052232971,-160.0,0.00038345,7]
[359480390,1746052232981,-160.0,0.00038346,3]
[359480391,1746052232992,-182.04053198,0.00038346,3]
[359480392,1746052233002,-421.37435881,0.00038346,3]
[359480393,1746052233012,-315.03537622,0.00038355,7]
[359480394,1746052233021,-313.7775499,0.00038355,7]
[359480395,1746052233032,-500.0,0.00038355,15]
[359480396,1746052233042,-336.3849235,0.00038355,15]
[359480397,1746052233052,-500.0,0.00038355,15]
[359480398,1746052233061,-476.78866494,0.00038355,15]
[359480399,1746052233071,-162.380719,0.00038355,14]
[359480400,1746052233081,-840.90604152,0.00038356,3]
[359480401,1746052233091,-24151.10974753,0.00038356,2]
[359480402,1746052233105,-45857.1806861,0.00038356,2]
[359480403,1746052233117,-487.31355088,0.00038356,2]
[359480404,1746052233133,-1161.998838,0.00038356,2]
[359480436,1746052238320,-1456.61503256,0.00038356,2]
[359480443,1746052238376,-17905.40388046,0.00038356,2]
[359480445,1746052238385,-8900.65930554,0.00038356,3]
[359480447,1746052238395,-151.0,0.00038356,14]
[359480449,1746052238405,-152.439723,0.00038356,14]
[359480451,1746052238414,-151.0,0.00038356,14]
[359480453,1746052238424,-151.0,0.00038356,14]
[359480455,1746052238433,-151.0,0.00038356,14]
[359480457,1746052238442,-151.0,0.00038356,14]
[359480459,1746052238451,-151.0,0.00038356,14]
[359480461,1746052238461,-151.0,0.00038356,14]
[359480463,1746052238471,-151.0,0.00038356,14]
[359480466,1746052238480,-151.0,0.00038356,14]
[359480468,1746052238489,-151.0,0.00038356,14]
[359480470,1746052238499,-151.0,0.00038356,14]
[359480472,1746052238508,-255.0,0.00038356,14]
[359480474,1746052238518,-400.0,0.00038356,12]
[359480476,1746052238527,-300.0,0.00038356,12]
[359480478,1746052238537,-500.0,0.00038356,12]
[359480480,1746052238546,-400.0,0.00038356,12]
[359480482,1746052238555,-400.0,0.00038356,12]
[359480484,1746052238564,-300.0,0.00038356,12]
[359480486,1746052238573,-400.0,0.00038356,12]
[359480488,1746052238586,-200.0,0.00038356,12]
[359480490,1746052238595,-151.0,0.00038356,14]
[359480492,1746052238606,-153.7173,0.00038356,14]
[359480494,1746052238615,-500.0,0.00038356,12]
[359480496,1746052238625,-189.595587,0.00038356,14]
[359480498,1746052238634,-189.595587,0.00038356,14]
[359480500,1746052238644,-189.595587,0.00038356,14]
[359480502,1746052238654,-189.595587,0.00038356,14]
[359480504,1746052238664,-151.0,0.00038356,14]
[359480506,1746052238674,-400.0,0.00038356,12]
[359480508,1746052238684,-200.0,0.00038356,12]
[359480510,1746052238693,-400.0,0.00038356,12]
[359480512,1746052238703,-182.21,0.00038356,12]
[359480514,1746052238712,-313.4808757,0.00038356,12]
[359480516,1746052238722,-400.0,0.00038356,12]
[359480518,1746052238731,-350.40665109,0.00038356,12]
[359480520,1746052238741,-151.0,0.00038356,14]
[359480522,1746052238751,-400.0,0.00038356,12]
[359480524,1746052238760,-254.98,0.00038356,12]
[359480526,1746052238770,-400.0,0.00038356,12]
[359480528,1746052238780,-151.0,0.00038356,14]
[359480530,1746052238789,-225.4408119,0.00038356,12]
[359480532,1746052238799,-400.0,0.00038356,12]
[359480534,1746052238810,-400.0,0.00038356,12]
[359480536,1746052238820,-346.53579634,0.00038356,12]
[359480538,1746052238829,-400.0,0.00038356,12]
[359480540,1746052238840,-151.0,0.00038356,14]
[359480542,1746052238850,-400.0,0.00038356,12]
[359480544,1746052238859,-400.0,0.00038356,12]
[359480546,1746052238869,-400.0,0.00038356,12]
[359480548,1746052238878,-427.75,0.00038356,12]
[359480550,1746052238888,-400.0,0.00038356,12]
[359480552,1746052238897,-400.0,0.00038356,12]
[359480554,1746052238907,-400.0,0.00038356,12]
[359480556,1746052238916,-400.0,0.00038356,12]
[359480558,1746052238926,-400.0,0.00038356,12]
[359480560,1746052238935,-400.0,0.00038356,12]
[359480562,1746052238944,-400.0,0.00038356,12]
[359480564,1746052238953,-400.0,0.00038356,12]
[359480566,1746052238963,-225.72,0.00038356,12]
[359480568,1746052238973,-400.0,0.00038356,12]
[359480570,1746052238982,-400.0,0.00038356,12]
[359480572,1746052238992,-437.89,0.00038356,12]
[359480574,1746052239002,-400.0,0.00038356,12]
[359480576,1746052239012,-400.0,0.00038356,12]
[359480578,1746052239021,-151.0,0.00038356,14]
[359480580,1746052239031,-406.3,0.00038356,12]
[359480582,1746052239041,-400.0,0.00038356,12]
[359480584,1746052239050,-459.06,0.00038356,12]
[359480586,1746052239059,-151.0,0.00038356,14]
[359480588,1746052239069,-400.0,0.00038356,12]
[359480590,1746052239078,-400.0,0.00038356,12]
[359480592,1746052239088,-400.0,0.00038356,12]
[359480594,1746052239098,-439.77,0.00038356,12]
[359480610,1746052239245,-151.0,0.00038356,14]
[359480611,1746052239255,-151.0,0.00038356,14]
[359480612,1746052239265,-402.11,0.00038356,12]
[359480614,1746052239275,-151.0,0.00038356,14]
[359480615,1746052239286,-400.0,0.00038356,12]
[359480616,1746052239296,-374.04,0.00038356,12]
[359480617,1746052239305,-498.63,0.00038356,12]
[359480618,1746052239315,-400.0,0.00038356,12]
[359480619,1746052239325,-400.0,0.00038356,12]
[359480620,1746052239335,-360.22165966,0.00038356,12]
[359480621,1746052239345,-400.0,0.00038356,12]
[359480622,1746052239355,-400.0,0.00038356,12]
[359480623,1746052239364,-400.0,0.00038356,12]
[359480624,1746052239374,-400.0,0.00038356,12]
[359480625,1746052239383,-400.0,0.00038356,12]
[359480626,1746052239393,-431.16,0.00038356,12]
[359480627,1746052239402,-459.87520404,0.00038356,12]
[359480628,1746052239412,-400.0,0.00038356,12]
[359480629,1746052239422,-400.0,0.00038356,12]
[359480630,1746052239432,-278.34,0.00038356,12]
[359480631,1746052239442,-400.0,0.00038356,12]
[359480632,1746052239452,-1297.162723,0.00038356,14]
[359480633,1746052239462,-400.0,0.00038356,12]
[359480634,1746052239471,-508.40776385,0.00038356,12]
[359480635,1746052239481,-400.0,0.00038356,12]
[359480636,1746052239490,-400.0,0.00038356,12]
[359480637,1746052239500,-400.0,0.00038356,12]
[359480638,1746052239509,-426.22,0.00038356,12]
[359480639,1746052239519,-151.0,0.00038356,14]
[359480640,1746052239530,-400.0,0.00038356,12]
[359480641,1746052239539,-400.0,0.00038356,12]
[359480642,1746052239549,-162.88,0.00038356,12]
[359480643,1746052239558,-503.29216947,0.00038356,12]
[359480644,1746052239568,-547.5,0.00038356,12]
[359480645,1746052239579,-400.0,0.00038356,12]
[359480646,1746052239591,-400.0,0.00038356,12]
[359480647,1746052239601,-400.0,0.00038356,12]
[359480648,1746052239611,-400.0,0.00038356,12]
[359480649,1746052239622,-400.0,0.00038356,12]
[359480650,1746052239631,-400.0,0.00038356,12]
[359480651,1746052239640,-400.0,0.00038356,12]
[359480652,1746052239649,-400.0,0.00038356,12]
[359480653,1746052239660,-400.0,0.00038356,12]
[359480654,1746052239671,-200.0,0.00038356,12]
[359480655,1746052239680,-400.0,0.00038356,12]
[359480656,1746052239689,-400.0,0.00038356,12]
[359480657,1746052239700,-548.76,0.00038356,12]
[359480658,1746052239709,-400.0,0.00038356,12]
[359480659,1746052239719,-400.0,0.00038356,12]
[359480660,1746052239729,-400.0,0.00038356,12]
[359480661,1746052239739,-500.0,0.00038356,12]
[359480662,1746052239750,-400.0,0.00038356,12]
[359480663,1746052239762,-400.0,0.00038356,12]
[359480664,1746052239772,-400.0,0.00038356,12]
[359480665,1746052239782,-400.0,0.00038356,12]
[359480666,1746052239792,-400.0,0.00038356,12]
[359480667,1746052239802,-400.0,0.00038356,12]
[359480668,1746052239812,-176.640183,0.00038356,14]
[359480669,1746052239822,-400.0,0.00038356,12]
[359480670,1746052239831,-400.0,0.00038356,12]
[359480671,1746052239841,-400.0,0.00038356,12]
[359480672,1746052239851,-151.0,0.00038356,14]
[359480673,1746052239861,-176.640183,0.00038356,14]
[359480674,1746052239871,-400.0,0.00038356,12]
[359480675,1746052239881,-400.0,0.00038356,12]
[359480676,1746052239890,-210.91112369,0.00038356,12]
[359480677,1746052239900,-400.0,0.00038356,12]
[359480678,1746052239912,-400.0,0.00038356,12]
[359480679,1746052239922,-400.0,0.00038356,12]
[359480680,1746052239933,-400.0,0.00038356,12]
[359480681,1746052239943,-400.0,0.00038356,12]
[359480682,1746052239953,-400.0,0.00038356,12]
[359480683,1746052239963,-400.0,0.00038356,12]
[359480684,1746052239974,-400.0,0.00038356,12]
[359480685,1746052239983,-475.25,0.00038356,12]
[359480686,1746052239993,-417.55234371,0.00038356,12]
[359480687,1746052240002,-500.0,0.00038356,12]
[359480688,1746052240012,-400.0,0.00038356,12]
[359480689,1746052240021,-196.19956782,0.00038356,12]
[359480690,1746052240031,-400.0,0.00038356,12]
[359480691,1746052240041,-400.0,0.00038356,12]
[359480692,1746052240051,-400.0,0.00038356,12]
[359480693,1746052240060,-372.76242901,0.00038356,12]
[359480694,1746052240070,-400.0,0.00038356,12]
[359480695,1746052240079,-464.61,0.00038356,12]
[359480696,1746052240088,-540.77618946,0.00038356,12]
[359480697,1746052240098,-150.19922121,0.00038356,12]
[359480698,1746052240108,-400.0,0.00038356,12]
[359480699,1746052240117,-400.0,0.00038356,12]
[359480700,1746052240126,-400.0,0.00038356,12]
[359480701,1746052240138,-400.0,0.00038356,12]
[359480702,1746052240148,-209.75,0.00038356,12]
[359480703,1746052240159,-400.0,0.00038356,12]
[359480704,1746052240170,-500.0,0.00038356,12]
[359480705,1746052240179,-400.0,0.00038356,12]
[359480706,1746052240188,-503.79091632,0.00038356,12]
[359480707,1746052240198,-400.0,0.00038356,12]
[359480708,1746052240207,-400.0,0.00038356,12]
[359480709,1746052240216,-400.0,0.00038356,12]
[359480710,1746052240227,-400.0,0.00038356,12]
[359480711,1746052240236,-400.0,0.00038356,12]
[359480712,1746052240246,-170.81,0.00038356,12]
[359480713,1746052240256,-400.0,0.00038356,12]
[359480715,1746052240266,-400.0,0.00038356,12]
[359480717,1746052240275,-400.0,0.00038356,12]
[359480718,1746052240284,-400.0,0.00038356,12]
[359480720,1746052240294,-538.7,0.00038356,12]
[359480722,1746052240304,-400.0,0.00038356,12]
[359480725,1746052240313,-193.93519418,0.00038356,12]
[359480727,1746052240325,-400.0,0.00038356,12]
[359480728,1746052240334,-617.785558,0.00038356,2]
[359480730,1746052240344,-500.0,0.00038356,12]
[359480732,1746052240354,-400.0,0.00038356,12]
[359480734,1746052240363,-400.0,0.00038356,12]
[359480736,1746052240372,-400.0,0.00038356,12]
[359480739,1746052240383,-400.0,0.00038356,12]
[359480741,1746052240393,-400.0,0.00038356,12]
[359480743,1746052240402,-400.0,0.00038356,12]
[359480744,1746052240412,-617.785558,0.00038356,2]
[359480746,1746052240422,-400.0,0.00038356,12]
[359480748,1746052240433,-213.12651549,0.00038356,12]
[359480750,1746052240443,-400.0,0.00038356,12]
[359480753,1746052240452,-400.0,0.00038356,12]
[359480755,1746052240461,-400.0,0.00038356,12]
[359480756,1746052240471,-400.0,0.00038356,12]
[359480758,1746052240481,-400.0,0.00038356,12]
[359480760,1746052240490,-400.0,0.00038356,12]